Cogmind - Beta 11.1 @@@ ROGUE MODE // 2022.05.18 @ 04:49:49 // Winter2019/RPGLIKE Player: Infomantis Result: Destroyed by B-86 Titan with Hardcell Cannon Performance ------------- Evolutions (6) 3000 Regions Visited (16) 3200 Robots Destroyed (256) 1280 Value Destroyed (10843) 10843 Prototype IDs (31) 620 Alien Tech Used (0) 0 Bonus (3285) 3285 TOTAL SCORE: 22228 Bonus ------- High Alert Combat Kills 1809 Follower Combat Kills 161 Entered Garrisons 600 Used RIF Installer 1000 Friendly Fire -285 Cogmind --------- Core Integrity 0/1100 Matter 166/300 Energy 118/670 System Corruption 0% Temperature Cool (8) Movement Flying (119) Ox1 Location -4/Garrison Parts ------- > --- POWER (2) -------- Enhanced Nuclear Core Light Neutrino Core > --- PROPULSION (5) --- Field Propulsion Drive Nuclear Pulse Array > --- UTILITY (7) ------ Machine Analyzer Improved Signal Interpreter Improved Terrain Scanner Advanced Target Analyzer Hardlight Generator Relay Coupler [NC] (45) Relay Coupler [Grunt] (1) > --- WEAPON (4) ------- Heavy Shock Bomb Launcher Heavy Shock Bomb Launcher Improved Datajack > --- INVENTORY (6) ---- Advanced Sensor Array Advanced Hardlight Generator Improved EM Pulse Cannon Matter Neutralizer Matter Neutralizer Heavy Missile Launcher Peak State ------------ > --- POWER ------------ Enhanced Nuclear Core Light Neutrino Core > --- PROPULSION ------- Biomechanical Wings Field Propulsion Drive Nuclear Pulse Array > --- UTILITY ---------- Improved Coolant Injector Machine Analyzer Advanced Sensor Array Improved Signal Interpreter Hardlight Generator Relay Coupler [NC] Relay Coupler [Grunt] > --- WEAPON ----------- High-powered Shock Rifle Guided EMP Blaster Impact Mace > --- INVENTORY -------- Improved Terrain Scanner Graphene Brace Advanced System Restoration Module Heavy Missile Launcher Improved Datajack [Rating: 84] Favorites ----------- Power Enhanced Nuclear Core Engine Heavy Ion Engine Power Core Enhanced Nuclear Core Propulsion Combat Airjet Wheel Armored Wheel Hover Unit Combat Airjet Flight Unit Field Propulsion Drive Utility Hardlight Generator Device Hardlight Generator Processor Machine Analyzer Hackware Relay Coupler [NC] Weapon Improved Medium Laser Energy Gun Improved Medium Laser Energy Cannon Improved EM Pulse Cannon Ballistic Gun Assault Rifle Launcher Guided EMP Blaster Impact Weapon Impact Mace Slashing Weapon Dual-blade Saw Special Melee Weapon Improved Datajack Build | -11 -10 -10 -9 -9 -8 -7 -7 -6 -6 -5 -5 -5 -5 -5 -4 -4 ------- Run | Scr Mat Min Mat Min Mat Fac Sto Fac Gar Fac Was Fac Gar Fac Fac Gar Slots Evolved 14 | 3 . 1 . . 3 1 2 1 1 . . 1 . . 1 . Power 1 | . . . . . . . 1 . . . . . . . . . Propulsion 4 | 1 . . . . . . 1 1 . . . . . . 1 . Utility 6 | 1 . 1 . . 2 . . . 1 . . 1 . . . . Weapon 3 | 1 . . . . 1 1 . . . . . . . . . . Parts Attached 150 | 7 5 7 11 4 13 5 13 11 2 . 5 23 14 21 5 4 Power 13 | 1 . . 3 . . 1 3 . . . . 4 . 1 . . Engine 6 | 1 . . 2 . . 1 1 . . . . 1 . . . . Core 7 | . . . 1 . . . 2 . . . . 3 . 1 . . Reactor . | . . . . . . . . . . . . . . . . . Propulsion 26 | 3 1 2 2 . 1 2 4 1 1 . 1 5 . 3 . . Treads . | . . . . . . . . . . . . . . . . . Leg . | . . . . . . . . . . . . . . . . . Wheel 9 | 3 1 2 2 . 1 . . . . . . . . . . . Hover 10 | . . . . . . 2 4 1 1 . 1 1 . . . . Flight 7 | . . . . . . . . . . . . 4 . 3 . . Utility 35 | 1 2 1 2 . 4 . . 2 1 . . 7 8 4 3 . Device 29 | 1 2 1 2 . 2 . . 2 1 . . 6 6 4 2 . Storage . | . . . . . . . . . . . . . . . . . Processor 3 | . . . . . 2 . . . . . . . . . 1 . Hackware 3 | . . . . . . . . . . . . 1 2 . . . Protection . | . . . . . . . . . . . . . . . . . Artifact . | . . . . . . . . . . . . . . . . . Weapon 76 | 2 2 4 4 4 8 2 6 8 . . 4 7 6 13 2 4 Energy Gun 35 | 1 2 2 2 2 7 1 2 8 . . 3 . 2 3 . . Energy Cannon 10 | . . . 1 . . . 3 . . . . 2 . 3 . 1 Ballistic Gun 1 | 1 . . . . . . . . . . . . . . . . Ballistic Cannon . | . . . . . . . . . . . . . . . . . Launcher 15 | . . 1 . 2 1 1 1 . . . . 1 2 2 2 2 Special Weapon . | . . . . . . . . . . . . . . . . . Impact Weapon 6 | . . . . . . . . . . . . 2 . 4 . . Slashing Weapon 3 | . . 1 1 . . . . . . . 1 . . . . . Piercing Weapon . | . . . . . . . . . . . . . . . . . Special Melee Weapon 6 | . . . . . . . . . . . . 2 2 1 . 1 Unidentified Prototypes 15 | . 1 . 2 . 3 . 7 . . . . 2 . . . . Corrupted Parts 1 | . . . . . . . . . . . . 1 . . . . System Corruption 1 | . . . . . . . . . . . . 1 . . . . Parts Lost 6 | . . . . . 1 . . . . . 3 1 . . . 1 Power . | . . . . . . . . . . . . . . . . . Propulsion 2 | . . . . . . . . . . . 1 . . . . 1 Utility . | . . . . . . . . . . . . . . . . . Weapon 4 | . . . . . 1 . . . . . 2 1 . . . . Highest Loss Streak 3 | . . . . . 1 . . . . . 3 1 . . . 1 To Critical Strikes . | . . . . . . . . . . . . . . . . . Average Slot Usage (%) 95 | . 100 95 98 100 99 99 90 99 99 100 86 87 89 89 89 83 Engine 6 | . 14 12 11 12 10 9 5 . . . . . . . . . Core 4 | . . . . . . . 4 13 12 12 10 9 11 11 11 11 Wheel 11 | . 28 25 24 25 20 3 . . . . . . . . . . Hover 6 | . . . . . . 14 18 25 25 25 18 5 . . . . Flight 3 | . . . . . . . . . . . . 10 17 17 16 16 Device 25 | . 28 31 36 37 25 27 23 19 21 25 25 24 17 16 16 11 Processor 8 | . . . . . 12 18 15 13 12 12 12 11 11 11 11 16 Hackware 2 | . . . . . . . . . . . . 1 10 11 11 11 Energy Gun 20 | . 22 24 25 24 29 26 16 24 25 25 17 11 5 4 . . Special Melee Weapon 1 | . . . . . . . . . . . . 4 4 4 5 5 Naked Turns . | . . . . . . . . . . . . . . . . . Heaviest Build 46 | 10 13 18 21 21 27 34 41 46 40 40 40 40 41 41 41 41 Greatest Support 51 | 31 31 31 31 27 29 34 43 51 51 51 51 41 41 42 42 42 Greatest Overweight (x) 3 | 1 . . . . . 3 2 . . . 1 1 . . . . Average Overweight (x) . | . . . . . . . . . . . . . . . . . Largest Inventory Capacity 6 | . 2 3 4 4 5 5 5 6 6 6 6 6 6 6 6 6 Average Capacity 4 | . . 2 3 4 4 5 5 5 6 6 6 6 6 6 6 6 Most Carried 6 | . 2 3 4 4 5 5 5 5 6 6 6 6 6 6 6 6 Average Carried 4 | . . 2 3 4 4 4 4 4 5 6 6 5 5 5 5 6 Final Capacity 6 | . 2 3 4 4 5 5 5 6 6 6 6 6 6 6 6 6 Final Carried 6 | . 2 3 4 4 5 5 5 5 6 6 6 5 6 6 6 6 Class Distribution -------------------- 47% | Hacker-Scout 23% | Mutant 14% | Hacker-Skirmisher 12% | Skirmisher Dominant Class ---------------- Mutant | -10/Materials Mutant | -10/Mines Mutant | -9/Materials Skirmisher | -9/Mines Hacker-Skirmisher | -8/Materials Hacker-Scout | -7/Factory Hacker-Scout | -7/Storage Hacker-Scout | -6/Factory Hacker-Scout | -6/Garrison Hacker-Scout | -5/Factory Hacker-Scout | -5/Waste Hacker-Scout | -5/Factory Hacker-Scout | -5/Garrison Hacker-Scout | -5/Factory Hacker-Scout | -4/Factory Hacker-Scout | -4/Garrison Resources | -11 -10 -10 -9 -9 -8 -7 -7 -6 -6 -5 -5 -5 -5 -5 -4 -4 ----------- Run | Scr Mat Min Mat Min Mat Fac Sto Fac Gar Fac Was Fac Gar Fac Fac Gar Matter Collected 2399 | 348 136 86 110 35 210 90 137 110 20 . . 252 336 431 . 98 Remotely . | . . . . . . . . . . . . . . . . . Salvage Created 9152 | 181 538 11 925 180 1514 588 932 588 1110 266 . 333 392 931 65 598 Parts 571 | 6 41 5 59 9 105 41 52 35 63 4 . 18 50 43 12 28 Haulers Intercepted 12 | . 2 . 2 . 3 . 2 1 . 1 . . . 1 . . Recyclers Shooed 4 | . . . 3 . . . . 1 . . . . . . . . Parts Field Recycled . | . . . . . . . . . . . . . . . . . Retrieved Matter . | . . . . . . . . . . . . . . . . . Parts Self-Destructed . | . . . . . . . . . . . . . . . . . Prevented . | . . . . . . . . . . . . . . . . . Kills | -11 -10 -10 -9 -9 -8 -7 -7 -6 -6 -5 -5 -5 -5 -5 -4 -4 ------- Run | Scr Mat Min Mat Min Mat Fac Sto Fac Gar Fac Was Fac Gar Fac Fac Gar Combat Hostiles Destroyed 184 | . 8 3 18 2 29 15 19 11 27 2 . 11 15 8 5 11 Melee 2 | . . . . . . . . . . . . 1 1 . . . Guns 94 | . 8 3 18 1 24 9 7 5 13 1 . 3 2 . . . Cannons 13 | . . . . . . . 6 . . . . 1 2 . 1 3 AOE 43 | . . . . . 4 6 3 6 3 1 . 4 4 1 4 7 Classes Destroyed 21 | 3 7 . 1 1 4 . 1 . 2 . . 1 1 . . . Worker 8 | 1 1 1 . 1 3 . . 1 . . . . . . . . Builder 9 | . 3 . 1 . 1 1 . . . . . 2 . 1 . . Tunneler 6 | 3 . . 1 1 . . . 1 . . . . . . . . Hauler 12 | . 2 . 2 . 3 . 2 1 . 1 . . . 1 . . Recycler 5 | 1 . . 2 1 . . . 1 . . . . . . . . Mechanic 3 | . 1 . 1 . 1 . . . . . . . . . . . Operator 8 | . 1 . 1 . 2 1 1 1 . . . . 1 . . . Watcher 20 | . 3 . 1 . 5 2 . 3 . 1 . . . 5 . . Swarmer 57 | . 3 3 3 . 7 4 4 7 4 . . 7 3 . 5 7 Cutter 4 | . . . . . . . . . 4 . . . . . . . Grunt 61 | . 5 . 12 1 11 5 4 2 12 . . 1 3 . . 5 Brawler 6 | . . . . 1 1 . 3 . 1 . . . . . . . Duelist 4 | . . . . . 1 . 1 . 2 . . . . . . . Protector 1 | . . . . . 1 . . . . . . . . . . . Sentry 34 | . . . 3 . 6 5 5 2 2 . . 1 6 4 . . Demolisher 3 | . . . . . . . 2 . 1 . . . . . . . Specialist 1 | . . . . . . . . . 1 . . . . . . . Hunter 5 | . . . . . 1 1 . . . 2 . . . 1 . . Programmer 7 | . . . . . . . . . . . . 2 2 3 . . Heavy 1 | . . . . . 1 . . . . . . . . . . . Behemoth 1 | . . . . . . . . . . . . . 1 . . . Best Kill Streak 10 | 2 3 2 8 2 10 4 9 7 7 4 . 6 7 3 5 9 Combat Bots Only 9 | . 3 2 5 2 7 4 9 7 7 2 . 5 6 2 5 9 Max Kills in Single Turn 7 | 1 2 1 2 1 3 3 2 7 2 1 . 2 2 1 3 4 Gunslinging 1 | . . . 1 . 1 . . . . . . . . . . . Exploded 6 | . . . . . 3 3 1 6 1 1 . 2 2 1 3 4 Melee 1 | . . . . . . . . . . . . 1 1 . . . Uniques/NPCs Destroyed . | . . . . . . . . . . . . . . . . . Combat | -11 -10 -10 -9 -9 -8 -7 -7 -6 -6 -5 -5 -5 -5 -5 -4 -4 -------- Run | Scr Mat Min Mat Min Mat Fac Sto Fac Gar Fac Was Fac Gar Fac Fac Gar Damage Taken 7728 | . 584 71 468 5 685 575 1095 259 766 191 100 755 710 569 52 843 Core 6193 | . 494 60 381 5 551 456 846 199 613 150 79 622 564 453 39 681 Absorbed by Shields 2267 | . . 28 172 4 216 197 488 152 330 60 12 56 168 80 24 280 Redirected to Core 4983 | . 300 37 269 . 455 378 755 168 453 142 79 454 500 407 39 547 Regen/Repaired (Parts) 87 | . . . 13 . . . . . . . . . . 74 . . Core Remaining (%) 85 | 100 . 84 . 100 98 . 56 . 100 . . . . 61 . . Volleys Fired 610 | 26 100 15 59 24 88 28 36 22 41 8 . 18 68 39 5 33 Largest 4 | 2 2 2 2 2 3 3 3 4 4 4 . 3 2 2 1 2 Hottest 240 | 60 112 112 112 112 161 161 161 240 220 220 . 179 124 129 69 174 Shots Fired 1323 | 28 198 29 118 36 250 80 92 88 160 32 . 35 82 45 5 45 Gun 1181 | 28 198 28 118 34 247 78 65 86 160 32 . 30 48 29 . . Cannon 81 | . . . . . . . 27 2 . . . 2 8 11 3 28 Launcher 61 | . . 1 . 2 3 2 . . . . . 3 26 5 2 17 Special . | . . . . . . . . . . . . . . . . . Kinetic 58 | 26 32 . . . . . . . . . . . . . . . Thermal 518 | . 136 28 118 34 131 26 30 2 . . . . . . . 13 Explosive 16 | . . 1 . 2 3 2 . . . . . 3 3 . 2 . Electromagnetic 731 | 2 30 . . . 116 52 62 86 160 32 . 32 79 45 3 32 Robot Hit Streak 37 | 6 9 3 8 8 26 24 19 30 37 21 . 25 34 28 1 8 Robot Miss Streak 4 | 1 4 2 3 1 2 4 2 2 2 1 . 2 1 1 3 2 Penetration Max . | . . . . . . . . . . . . . . . . . Secondary Targets 14 | . . . 3 . 5 2 . . 4 . . . . . . . Max Gunslinging Chain 1 | . . . 1 . 1 1 . . 1 . . . . . . . Shots Hit Robots 807 | 19 54 6 71 12 138 51 78 47 135 28 . 41 50 51 1 25 Core Hits 438 | 6 24 4 32 6 83 36 51 29 55 10 . 20 36 16 5 25 Critical Kills 3 | 1 . . . . . . 1 . . . . . 1 . . . Critical Parts Destroyed 6 | 1 . . . . . . . . . . . 1 . 4 . . Critical Strikes 46 | 2 3 1 11 6 6 1 1 1 4 1 . 1 4 4 . . Burn 27 | . 2 1 11 6 6 1 . . . . . . . . . . Meltdown 1 | . . . . . . . 1 . . . . . . . . . Destroy 2 | 2 . . . . . . . . . . . . . . . . Corrupt 10 | . 1 . . . . . . 1 4 1 . . 3 . . . Smash 6 | . . . . . . . . . . . . 1 1 4 . . Melee Attacks 65 | . . 1 1 . . . . . . . . 23 9 25 1 5 Impact 42 | . . . . . . . . . . . . 18 2 21 1 . Slashing 2 | . . 1 1 . . . . . . . . . . . . . Piercing . | . . . . . . . . . . . . . . . . . Sneak Attacks 10 | . . . . . . . . . . . . 5 . 5 . . Combat Hostiles . | . . . . . . . . . . . . . . . . . Follow-up Attacks . | . . . . . . . . . . . . . . . . . Damage Inflicted 23288 | 244 915 143 1372 251 3185 1924 2410 1608 3181 715 . 1709 1941 1946 348 1396 Guns 13487 | 244 834 100 1297 205 2475 1072 1274 1082 2606 609 . 433 605 651 . . Cannons 1816 | . . . . . . . 606 40 . . . 49 117 225 24 755 Explosions 6622 | . 81 32 65 46 710 852 530 486 575 106 . 620 1164 390 324 641 Melee 1342 | . . . . . . . . . . . . 607 55 680 . . Ramming 21 | . . 11 10 . . . . . . . . . . . . . Kinetic 402 | 216 186 . . . . . . . . . . . . . . . Thermal 7863 | . 437 100 1297 205 1535 1026 1108 526 575 106 . 93 . 310 . 545 Explosive 2222 | . 81 32 65 46 346 164 76 . . . . 527 561 . 324 . Electromagnetic 11438 | 28 211 . . . 1304 734 1226 1082 2606 609 . 482 1325 956 24 851 Impact 1342 | . . . . . . . . . . . . 607 55 680 . . Slashing . | . . . . . . . . . . . . . . . . . Piercing . | . . . . . . . . . . . . . . . . . Highest Corruption 10 | . . . . . . 3 3 . . . 10 10 2 3 . . Average Corruption 3 | . . . . . . 2 3 . . . 10 4 1 2 . . Corruption Purged 17 | . . . . . . . . . . . . 11 4 2 . . Corruption Blocked 16 | . . . . . . 16 . . . . . . . . . . Effects 43 | . . . . . . 14 5 . . . 4 15 4 1 . . Message Errors 17 | . . . . . . 6 1 . . . 1 8 . 1 . . Matter Fused 7 | . . . . . . 2 1 . . . 2 . 2 . . . Heat Flow Errors 5 | . . . . . . 2 . . . . . 2 1 . . . Data Loss (minor) 8 | . . . . . . 3 1 . . . . 3 1 . . . Alerts 3 | . . . . . . 1 . . . . . 2 . . . . Misdirections 1 | . . . . . . . . . . . 1 . . . . . Weapon Failures 2 | . . . . . . . 2 . . . . . . . . . Overload Shots . | . . . . . . . . . . . . . . . . . Overflow Damage 986 | . 21 . . . 68 82 2 . . . . 270 . 529 . 14 Projectiles . | . . . . . . . . . . . . . . . . . Explosions 382 | . 21 . . . 68 82 2 . . . . 88 . 107 . 14 Melee 604 | . . . . . . . . . . . . 182 . 422 . . Knockbacks 10 | . . . . . . . . . . . . 6 . 4 . . Impact 10 | . . . . . . . . . . . . 6 . 4 . . Kinetic . | . . . . . . . . . . . . . . . . . Secondary . | . . . . . . . . . . . . . . . . . Self-Inflicted Damage 1022 | . 241 5 175 . 84 113 153 27 . 49 . 129 . . . 46 Shots 23 | . 4 . 2 . 2 4 3 1 . 1 . 3 . . . 3 Rammed 3 | . . 1 2 . . . . . . . . . . . . . Targets Rammed 3 | . . 1 2 . . . . . . . . . . . . . Kicked . | . . . . . . . . . . . . . . . . . Crushed . | . . . . . . . . . . . . . . . . . Highest Temperature 423 | . 215 . 301 . 147 254 18 229 328 184 . 132 140 19 . 423 Average Temperature 73 | . 76 . 85 . 37 39 7 69 111 94 . 36 61 11 . 244 Received Heat Transfer 1307 | . 162 . 93 3 155 60 175 58 146 . . 41 131 63 . 220 Effects 8 | . . . . . . . . . 2 . . . . . . 6 Shutdowns 2 | . . . . . . . . . . . . . . . . 2 Interference 5 | . . . . . . . . . 2 . . . . . . 3 Damage (minor) 1 | . . . . . . . . . . . . . . . . 1 Siege Activations . | . . . . . . . . . . . . . . . . . Robots Corrupted 30 | . . . . . . . 2 1 11 1 . 1 6 6 . 2 Combat Hostiles 27 | . . . . . . . 2 . 11 . . 1 6 6 . 1 Parts Fried 91 | . . . . . 8 7 4 13 26 12 . 3 6 10 . 2 Impact Corruptions 26 | . . . . . . . . . . . . 9 . 17 . . Robots Melted 3 | . . . . 1 1 . 1 . . . . . . . . . Combat Hostiles 3 | . . . . 1 1 . 1 . . . . . . . . . Parts Melted 29 | . 2 1 5 3 11 1 5 . . . . . . . . 1 Heat Transferred 12992 | . 1110 296 3626 888 3198 992 1225 400 450 100 . 100 . 150 . 457 Parts Sabotaged . | . . . . . . . . . . . . . . . . . Parts Stolen . | . . . . . . . . . . . . . . . . . Parts Stripped . | . . . . . . . . . . . . . . . . . Power Chain Reactions 23 | . . . . . 2 4 4 1 5 2 . 2 1 . . 2 Missiles Intercepted . | . . . . . . . . . . . . . . . . . Alert | -11 -10 -10 -9 -9 -8 -7 -7 -6 -6 -5 -5 -5 -5 -5 -4 -4 ------- Run | Scr Mat Min Mat Min Mat Fac Sto Fac Gar Fac Was Fac Gar Fac Fac Gar Peak Influence 1330 | 25 682 383 666 468 847 656 756 742 1330 697 197 298 1190 1046 203 451 Initial 697 | . 16 265 90 210 51 275 298 270 519 697 192 116 110 624 57 142 Average 436 | 10 317 296 387 253 456 423 540 430 1009 456 181 148 562 735 179 226 Maximum Alert Level 4 | . 2 1 2 2 3 2 3 3 4 2 . 1 4 3 1 2 Low Security (%) 19 | 100 32 11 11 32 8 . . . . . 100 69 19 8 21 26 Level 1 35 | . 33 88 48 51 37 45 35 43 . 9 . 30 9 3 78 69 Level 2 27 | . 33 . 40 15 45 54 42 46 8 90 . . 41 7 . 4 Level 3 14 | . . . . . 8 . 21 9 53 . . . 20 79 . . Level 4 3 | . . . . . . . . . 37 . . . 8 . . . Level 5 . | . . . . . . . . . . . . . . . . . High Security . | . . . . . . . . . . . . . . . . . Max Security . | . . . . . . . . . . . . . . . . . Squads Dispatched 24 | . . 1 5 . 5 4 3 2 . . . 2 . 2 . . Investigation 10 | . . 1 4 . . 3 . 1 . . . 1 . . . . Extermination 3 | . . . . . . 1 . . . . . 1 . 1 . . Reinforcement 6 | . . . 1 . 3 . 1 1 . . . . . . . . Assault 4 | . . . . . 1 . 2 . . . . . . 1 . . Garrison 1 | . . . . . 1 . . . . . . . . . . . Intercept . | . . . . . . . . . . . . . . . . . Searches Triggered . | . . . . . . . . . . . . . . . . . Construction Impeded . | . . . . . . . . . . . . . . . . . Haulers Reinforced 1 | . . . . . . . 1 . . . . . . . . . Active Scanning Responses . | . . . . . . . . . . . . . . . . . Cargo Convoy Interrupts 1 | . . . . . . 1 . . . . . . . . . . Stealth | -11 -10 -10 -9 -9 -8 -7 -7 -6 -6 -5 -5 -5 -5 -5 -4 -4 --------- Run | Scr Mat Min Mat Min Mat Fac Sto Fac Gar Fac Was Fac Gar Fac Fac Gar Distress Signals 11 | . . 1 3 . 1 3 1 1 . . . . . 1 . . Communications Jammed . | . . . . . . . . . . . . . . . . . Distress Signals . | . . . . . . . . . . . . . . . . . Times Spotted 269 | . 17 6 36 2 39 19 28 21 25 4 4 12 20 16 5 15 Peak Tracking Total 12 | . 3 3 6 2 6 4 12 7 5 2 5 5 6 3 5 9 Tactical Retreats 9 | . . 1 1 . 1 . . 2 . . . . 4 . . . Traps | -11 -10 -10 -9 -9 -8 -7 -7 -6 -6 -5 -5 -5 -5 -5 -4 -4 ------- Run | Scr Mat Min Mat Min Mat Fac Sto Fac Gar Fac Was Fac Gar Fac Fac Gar Traps Triggered 22 | . . . 1 . . 3 2 . 6 1 . 1 2 1 . 5 Indirectly 1 | . . . . . . . . . . . . . 1 . . . Trap Hack Attempts . | . . . . . . . . . . . . . . . . . Triggered . | . . . . . . . . . . . . . . . . . Disarmed . | . . . . . . . . . . . . . . . . . Reprogrammed 6 | . . . . . 6 . . . . . . . . . . . Reused . | . . . . . . . . . . . . . . . . . Traps Extracted . | . . . . . . . . . . . . . . . . . Installed . | . . . . . . . . . . . . . . . . . Triggered 1 | . . . . . . 1 . . . . . . . . . . Machines | -11 -10 -10 -9 -9 -8 -7 -7 -6 -6 -5 -5 -5 -5 -5 -4 -4 ---------- Run | Scr Mat Min Mat Min Mat Fac Sto Fac Gar Fac Was Fac Gar Fac Fac Gar Machines Disabled 85 | . 18 4 6 6 17 5 4 7 2 2 . . 8 4 . 2 Max in Single Turn 5 | . 2 1 2 1 1 2 1 5 1 2 . . 2 4 . 1 Garrison Access 6 | . . . . . 1 . . 1 . . . 1 . 2 1 . Garrison Relay 6 | . . . . . . . . . 1 . . . 4 . . 1 Phase Generator 1 | . . . . . . . . . . . . . 1 . . . Machines Sabotaged . | . . . . . . . . . . . . . . . . . Garrisons Compromised 1 | . . . . . . 1 . . . . . . . . . . Overloaded Fab Kills . | . . . . . . . . . . . . . . . . . Hacking | -11 -10 -10 -9 -9 -8 -7 -7 -6 -6 -5 -5 -5 -5 -5 -4 -4 --------- Run | Scr Mat Min Mat Min Mat Fac Sto Fac Gar Fac Was Fac Gar Fac Fac Gar Machines Accessed 74 | . 5 1 6 1 9 12 6 9 . 4 . 6 . 12 3 . Terminals 50 | . 5 . 4 1 8 9 6 5 . 3 . 3 . 6 . . Fabricators 7 | . . . . . . 2 . 2 . . . 1 . 2 . . Repair Stations 2 | . . . 1 . . . . . . . . . . 1 . . Recycling Units 2 | . . . . . . . . . . . . . . 1 1 . Scanalyzers 3 | . . . 1 . . 1 . . . 1 . . . . . . Garrison Access 9 | . . . . . 1 . . 2 . . . 2 . 2 2 . Total Hacks 223 | . 12 1 19 5 24 44 12 18 . 13 . 22 . 49 4 . Successful 135 | . 9 1 15 1 16 21 8 9 . 9 . 12 . 32 2 . Failed 87 | . 3 . 4 4 8 23 4 9 . 4 . 9 . 17 2 . Catastrophic 6 | . . . . . 1 2 . . . . . . . 2 1 . Database Lockouts 1 | . . . . . . . . . . . . 1 . . . . Manual 76 | . 1 . 5 5 7 19 1 7 . 1 . 11 . 19 . . Terminals 170 | . 12 . 15 5 22 35 12 11 . 8 . 15 . 35 . . Fabricators 17 | . . . . . . 7 . 2 . . . 4 . 4 . . Repair Stations 9 | . . . 2 . . . . . . . . . . 7 . . Recycling Units 3 | . . . . . . . . . . . . . . 1 2 . Scanalyzers 9 | . . . 2 . . 2 . . . 5 . . . . . . Garrison Access 14 | . . . . . 2 . . 5 . . . 3 . 2 2 . Terminal Hacks 76 | . 8 1 7 1 15 10 7 2 . 3 . 5 . 17 . . Part Schematic 5 | . . . . . . . 1 . . . . 1 . 3 . . Robot Schematic 1 | . . . . . . 1 . . . . . . . . . . Robot Analysis 8 | . 2 . 1 1 3 1 . . . . . . . . . . Prototype ID Bank 7 | . 1 . 2 . 1 1 1 . . . . . . 1 . . Open Door 4 | . . 1 . . . . 3 . . . . . . . . . Branch Access Points 6 | . 1 . 1 . 1 1 . 1 . 1 . . . . . . Emergency Access Points 1 | . . . . . . 1 . . . . . . . . . . Machine Index 1 | . . . . . 1 . . . . . . . . . . . Terminal Index 3 | . . . . . 1 . . . . . . 1 . 1 . . Scanalyzer Index 1 | . . . . . . . . . . . . . . 1 . . Alert Level 4 | . . . . . 2 2 . . . . . . . . . . Unreport Threat 10 | . . . . . 2 . . . . 2 . 1 . 5 . . Locate Traps 1 | . . . . . . . 1 . . . . . . . . . Reprogram Traps 1 | . . . . . 1 . . . . . . . . . . . Dispatch Records 1 | . . . . . . . . . . . . . . 1 . . Security Status 1 | . . . . . . . . . . . . . . 1 . . Transport Status 1 | . . . . . . . . . . . . 1 . . . . Recall Extermination 1 | . . . . . . 1 . . . . . . . . . . Recall Reinforcements 1 | . . . . . 1 . . . . . . . . . . . Recall Assault 1 | . . . . . . . . . . . . . . 1 . . Hauler Manifests 7 | . 1 . 2 . . 1 1 . . . . 1 . 1 . . Registered Components 5 | . . . 1 . 1 1 . 1 . . . . . 1 . . Registered Prototypes 1 | . . . . . . . . . . . . . . 1 . . Zone Layout 4 | . 3 . . . 1 . . . . . . . . . . . Fabricator Hacks 5 | . . . . . . 2 . 1 . . . 1 . 1 . . Network Status 4 | . . . . . . 1 . 1 . . . 1 . 1 . . Build 1 | . . . . . . 1 . . . . . . . . . . Repair Station Hacks 6 | . . . 2 . . . . . . . . . . 4 . . Scan Component 3 | . . . 1 . . . . . . . . . . 2 . . Repair 3 | . . . 1 . . . . . . . . . . 2 . . Recycling Unit Hacks 1 | . . . . . . . . . . . . . . 1 . . Retrieve Components 1 | . . . . . . . . . . . . . . 1 . . Scanalyzer 9 | . . . 2 . . 2 . . . 5 . . . . . . Insert Component 4 | . . . 1 . . 1 . . . 2 . . . . . . Analyze 5 | . . . 1 . . 1 . . . 3 . . . . . . Garrison Access Hacks 11 | . . . . . 1 . . 3 . . . 3 . 2 2 . Unlock Access 4 | . . . . . . . . 2 . . . 1 . . 1 . Seal Access 6 | . . . . . 1 . . 1 . . . 1 . 2 1 . Coupler Status 1 | . . . . . . . . . . . . 1 . . . . Unauthorized Hacks 27 | . 1 . 4 . . 7 1 3 . 1 . 3 . 7 . . Terminals 20 | . 1 . 4 . . 4 1 2 . 1 . 3 . 4 . . Assimilate 4 | . . . 1 . . . . . . 1 . 1 . 1 . . Botnet 8 | . 1 . 1 . . 2 . 1 . . . 1 . 2 . . Operators 6 | . . . . . . 2 1 1 . . . 1 . 1 . . Sabotage 1 | . . . 1 . . . . . . . . . . . . . Search 1 | . . . 1 . . . . . . . . . . . . . Fabricators 6 | . . . . . . 3 . 1 . . . . . 2 . . Report 2 | . . . . . . 1 . . . . . . . 1 . . Prioritize 1 | . . . . . . 1 . . . . . . . . . . Haulers 2 | . . . . . . 1 . . . . . . . 1 . . Download 1 | . . . . . . . . 1 . . . . . . . . Repair Stations 1 | . . . . . . . . . . . . . . 1 . . Mechanics 1 | . . . . . . . . . . . . . . 1 . . Recycling Units . | . . . . . . . . . . . . . . . . . Scanalyzers . | . . . . . . . . . . . . . . . . . Garrison Access . | . . . . . . . . . . . . . . . . . Data Cores Recovered 4 | . 1 . . . 1 1 1 . . . . . . . . . Used 3 | . 1 . . . 1 . 1 . . . . . . . . . Hacking Detections 43 | . 3 . 2 1 4 9 3 5 . 3 . 4 . 8 1 . Full Trace Events 4 | . . . . . . 3 . . . . . 1 . . . . Feedback Events . | . . . . . . . . . . . . . . . . . Feedback Blocked . | . . . . . . . . . . . . . . . . . Robot Schematics Acquired 1 | . . . . . . 1 . . . . . . . . . . Robots Built . | . . . . . . . . . . . . . . . . . Authchips . | . . . . . . . . . . . . . . . . . Time . | . . . . . . . . . . . . . . . . . Total Robot Build Rating . | . . . . . . . . . . . . . . . . . Part Schematics Acquired 9 | . . . 1 . . 1 1 . . 2 . 1 . 3 . . Parts Built 2 | . . . . . . 2 . . . . . . . . . . Authchips . | . . . . . . . . . . . . . . . . . Time 95 | . . . . . . 95 . . . . . . . . . . Total Part Build Rating 10 | . . . . . . 10 . . . . . . . . . . Parts Repaired 3 | . . . 1 . . . . . . . . . . 2 . . Time 144 | . . . 26 . . . . . . . . . . 118 . . Parts Recycled . | . . . . . . . . . . . . . . . . . Recycled Matter . | . . . . . . . . . . . . . . . . . Retrieved Matter . | . . . . . . . . . . . . . . . . . Retrieved Components 3 | . . . . . . . . . . . . . . 3 . . Parts Scanalyzed 4 | . . . 1 . . 1 . . . 2 . . . . . . Part Schematics Acquired 4 | . . . 1 . . 1 . . . 2 . . . . . . Parts Damaged 1 | . . . 1 . . . . . . . . . . . . . Bothacking | -11 -10 -10 -9 -9 -8 -7 -7 -6 -6 -5 -5 -5 -5 -5 -4 -4 ------------ Run | Scr Mat Min Mat Min Mat Fac Sto Fac Gar Fac Was Fac Gar Fac Fac Gar Used RIF Installer 2 | . . . . . . . . . 1 . . . 1 . . . Patrol Navigation 1 | . . . . . . . . . . . . . 1 . . . Robots Hacked 8 | . . . . . . . . . . . . 2 3 1 . 2 Non-combat 3 | . . . . . . . . . . . . 2 . 1 . . Combat 5 | . . . . . . . . . . . . . 3 . . 2 Robot Hacks Applied 14 | . . . . . . . . . . . . 5 3 4 . 2 parse_system 2 | . . . . . . . . . . . . 1 . 1 . . no_distress 2 | . . . . . . . . . . . . 1 . 1 . . find_fabricator 2 | . . . . . . . . . . . . 1 . 1 . . drop_inventory 3 | . . . . . . . . . . . . 2 . 1 . . reboot_system 1 | . . . . . . . . . . . . . . . . 1 streamctrl_high 1 | . . . . . . . . . . . . . . . . 1 formatsys_high 3 | . . . . . . . . . . . . . 3 . . . Relay Couplers Released 10 | . . . . . . . . . 1 . . 1 7 . . 1 Machine Destruction 10 | . . . . . . . . . 1 . . 1 7 . . 1 Attached 3 | . . . . . . . . . . . . 1 2 . . . Fabnet Peak Effective % . | . . . . . . . . . . . . . . . . . Robots Rewired 1 | . . . . . 1 . . . . . . . . . . . Allies Hacked 1 | . . . . . . . . . . . . . . 1 . . Hacks Repelled . | . . . . . . . . . . . . . . . . . Allies | -11 -10 -10 -9 -9 -8 -7 -7 -6 -6 -5 -5 -5 -5 -5 -4 -4 -------- Run | Scr Mat Min Mat Min Mat Fac Sto Fac Gar Fac Was Fac Gar Fac Fac Gar Total Allies 19 | . . . 1 . 1 . 10 . . 1 . 1 3 1 . 1 Largest Group 10 | . . . 1 1 1 . 10 . . 1 1 1 3 3 . 1 Highest-Rated Group 173 | . . . 10 10 16 . 173 . . 10 10 10 87 84 . 47 Highest-Rated Ally 47 | . . . 10 10 16 . 29 . . 10 10 10 29 29 . 47 Total Orders . | . . . . . . . . . . . . . . . . . Ally Attacks 45 | . . . . . 4 . 26 . . . . . 11 2 . 2 Total Damage 684 | . . . . . 43 . 373 . . . . . 151 38 . 79 Kills 4 | . . . . . . . 2 . . . . . 2 . . . Allies Corrupted 1 | . . . . . . . . . . . . . . . . 1 Allies Melted . | . . . . . . . . . . . . . . . . . Intel | -11 -10 -10 -9 -9 -8 -7 -7 -6 -6 -5 -5 -5 -5 -5 -4 -4 ------- Run | Scr Mat Min Mat Min Mat Fac Sto Fac Gar Fac Was Fac Gar Fac Fac Gar Robot Analysis Total 8 | . 2 . 1 1 3 1 . . . . . . . . . . Derelict Logs Recovered 4 | . . 3 . 1 . . . . . . . . . . . . Drone Launches . | . . . . . . . . . . . . . . . . . Drone Recoveries . | . . . . . . . . . . . . . . . . . Exploration | -11 -10 -10 -9 -9 -8 -7 -7 -6 -6 -5 -5 -5 -5 -5 -4 -4 ------------- Run | Scr Mat Min Mat Min Mat Fac Sto Fac Gar Fac Was Fac Gar Fac Fac Gar Turns Passed 10731 | 129 936 651 895 1191 1226 952 446 552 765 176 79 830 707 879 104 213 Spaces Moved 10304 | 75 622 632 674 647 926 1023 306 795 708 258 103 1028 691 1432 207 177 Core 21 | 10 . . . . . 1 10 . . . . . . . . . Treads . | . . . . . . . . . . . . . . . . . Legs . | . . . . . . . . . . . . . . . . . Wheels 3753 | 65 622 632 674 647 926 187 . . . . . . . . . . Hover 3182 | . . . . . . 835 296 795 708 258 103 187 . . . . Flight 3348 | . . . . . . . . . . . . 841 691 1432 207 177 Fastest Speed 35 | 50 90 90 85 85 85 76 62 53 53 53 52 35 35 35 37 37 Average Speed 63 | 87 90 90 88 85 89 78 78 53 53 53 62 44 35 35 37 37 Slowest Speed 200 | 100 90 90 90 85 90 200 150 62 53 53 126 126 35 37 37 37 Overloaded Moves . | . . . . . . . . . . . . . . . . . Propulsion Burnouts . | . . . . . . . . . . . . . . . . . Robots Hopped 1 | . . . . . . . . . . . . . . 1 . . Cave-ins Triggered 1 | . . . . . . 1 . . . . . . . . . . Exploration Rate (%) 51 | 4 83 99 52 102 77 32 43 22 74 10 88 25 97 38 6 21 Regions Visited 16 Branch Regions 3 Pre-discovered Areas 2 | . . 2 . . . . . . . . . . . . . . Known Exits Taken 10 | . 1 . 1 1 1 1 1 1 . . . 1 . 1 1 . Unknown Exits Taken 2 | 1 . 1 . . . . . . . . . . . . . . Scrap Searched 2 | . . 1 . 1 . . . . . . . . . . . . Spaces Dug 27 | . . . . . . 18 . . . . . 2 . 6 1 . Terrain Destroyed 825 | . 140 1 42 38 126 87 30 43 16 4 . 63 154 55 19 7 Melee 9 | . . . . . . . . . . . . 2 . 6 1 . Projectile 8 | . . . . . 1 . 6 1 . . . . . . . . AOE 808 | . 140 1 42 38 125 87 24 42 16 4 . 61 154 49 18 7 Terrain Rammed . | . . . . . . . . . . . . . . . . . Walls Destroyed . | . . . . . . . . . . . . . . . . . Machines Disabled . | . . . . . . . . . . . . . . . . . Actions | -11 -10 -10 -9 -9 -8 -7 -7 -6 -6 -5 -5 -5 -5 -5 -4 -4 --------- Run | Scr Mat Min Mat Min Mat Fac Sto Fac Gar Fac Was Fac Gar Fac Fac Gar Total 13251 | 108 800 682 852 1250 1131 1111 435 873 995 278 114 1333 1068 1714 228 279 Wait 1541 | . 60 10 50 573 51 25 35 9 145 5 7 191 194 182 2 2 Move 10287 | 74 621 631 673 646 925 1021 305 794 707 258 102 1028 690 1429 206 177 Hop 1 | . . . . . . . . . . . . . . 1 . . Pick Up 50 | . 2 3 5 1 5 5 2 4 3 1 . 4 6 5 4 . Fast Attach 72 | 6 4 1 8 . 7 3 12 3 1 . 5 10 4 7 . 1 Attach 11 | . . . . . 1 . 1 1 1 . . 3 2 2 . . Detach 1 | . . . . . . . . . . . . . 1 . . . Swap 68 | 1 1 6 3 4 6 2 . 7 . . . 10 8 12 5 3 Drop 95 | 1 4 2 12 1 10 8 8 11 1 1 . 12 9 8 5 2 Fire 610 | 26 100 15 59 24 88 28 36 22 41 8 . 18 68 39 5 33 Melee 65 | . . 1 1 . . . . . . . . 23 9 25 1 5 Ram 3 | . . 1 2 . . . . . . . . . . . . . Kick . | . . . . . . . . . . . . . . . . . Crush . | . . . . . . . . . . . . . . . . . Escape Stasis 150 | . . . . . . 1 . . 40 . . 18 37 . . 54 Rewire 2 | . . . . . 2 . . . . . . . . . . . Trap . | . . . . . . . . . . . . . . . . . Miscellaneous 295 | . 8 12 39 1 36 18 36 22 56 5 . 16 40 4 . 2 Route ------- -11/Scrapyard -10/Materials (discovered 3 exits: *Mat x2 / *Min) -10/Mines (discovered 3 exits: *Mat x2 / [*Exi]) -9/Materials (discovered 4 exits: *Mat x3 / *Min) -9/Mines (discovered 3 exits: *Mat x2 / [*Zio]) -8/Materials (discovered 3 exits: *Fac x3) -7/Factory (discovered 6 exits: *Fac x2 / *Sto x2 / *Low x2) -7/Storage -6/Factory (discovered 3 exits: *Low x2 / Gar) -6/Garrison (discovered 3 exits: *Fac x3) -5/Factory (discovered 2 exits: Upp x2) -5/Waste -5/Factory (discovered 3 exits: *Fac / *Upp / Gar) -5/Garrison (discovered 3 exits: *Fac x3) -5/Factory (discovered 2 exits: *Fac x2) -4/Factory -4/Garrison History --------- Turn | Location | Event 2 | -11/Scrapyard | Met Revision 17 13 | -11/Scrapyard | Discovered new exit (range 15) 16 | -11/Scrapyard | Upgraded with Propulsion slot (x1) 16 | -11/Scrapyard | Upgraded with Utility slot (x1) 16 | -11/Scrapyard | Upgraded with Weapon slot (x1) 130 | -11/Scrapyard | Entered Materials 317 | -10/Materials | Build established: Mutant 491 | -10/Materials | Identified exit to Mines 539 | -10/Materials | Discovered new exit (range 17) 621 | -10/Materials | Reached level 2 952 | -10/Materials | Discovered new exit (range 16) 1066 | -10/Materials | Entered Mines 1071 | -10/Mines | Learned 4 Materials zone layouts 1072 | -10/Mines | Learned 2 Materials zone layouts 1094 | -10/Mines | Reached level 3 1126 | -10/Mines | Learned location of Zion (-7) 1178 | -10/Mines | Upgraded with Utility slot (x1) 1361 | -10/Mines | Deemed a non-threat by the Exiles lab entrance 1361 | -10/Mines | Discovered new exit (range 6) 1389 | -10/Mines | Met a Derelict shopkeep closing up shop 1425 | -10/Mines | Discovered new exit (range 8) 1567 | -10/Mines | Discovered new exit (range 17) 1583 | -10/Mines | Learned location of Storage (-7) 1717 | -10/Mines | Entered Materials 1718 | -9/Materials | Identified exit to Materials 1719 | -9/Materials | Reached level 4 2042 | -9/Materials | Reached level 5 2083 | -9/Materials | Repaired Com. Wheel 2300 | -9/Materials | Reached level 6 2341 | -9/Materials | Identified exit to Mines 2612 | -9/Materials | Entered Mines 2612 | -9/Mines | Accompanied by 1 ally 2637 | -9/Mines | A Derelict revealed a hidden shortcut to a safe place 2658 | -9/Mines | Discovered exit to Materials (range 10) 2677 | -9/Mines | Met a Derelict bent on vengeance 2946 | -9/Mines | Learned Materials emergency access door positions 2968 | -9/Mines | Reached level 7 2991 | -9/Mines | Build established: Skirmisher 3018 | -9/Mines | Discovered exit to Materials (range 7) 3803 | -9/Mines | Entered Materials 3803 | -8/Materials | Accompanied by 1 ally 3805 | -8/Materials | Reached level 8 3875 | -8/Materials | Upgraded with Weapon slot (x1) 4030 | -8/Materials | Discovered new exit (range 8) 4138 | -8/Materials | Build established: Hacker-Skirmisher 4204 | -8/Materials | Discovered new exit (range 16) 4230 | -8/Materials | Reached level 9 4252 | -8/Materials | Upgraded with Utility slot (x1) 4400 | -8/Materials | Destroyed 7 combat bots 4400 | -8/Materials | Reached level 10 4603 | -8/Materials | First assault squad dispatched 4664 | -8/Materials | Discovered new exit (range 13) 4744 | -8/Materials | Reached level 11 4747 | -8/Materials | Upgraded with Utility slot (x1) 5011 | -8/Materials | Identified exit to Factory 5029 | -8/Materials | Entered Factory 5031 | -7/Factory | Reached level 12 5213 | -7/Factory | Fabricated Cmb. Airjet (x2) 5319 | -7/Factory | Discovered new exit (range 16) 5346 | -7/Factory | Identified exit to Lower Caves 5390 | -7/Factory | Discovered new exit (range 6) 5394 | -7/Factory | Identified exit to Factory 5510 | -7/Factory | Build established: Hacker-Scout 5570 | -7/Factory | Reached level 13 5627 | -7/Factory | Identified exit to Storage 5723 | -7/Factory | Discovered exit to Factory (range 17) 5814 | -7/Factory | Crushed by falling debris 5841 | -7/Factory | Cargo convoy interrupted 5900 | -7/Factory | Reached level 14 5981 | -7/Factory | Upgraded with Weapon slot (x1) 5981 | -7/Factory | Entered Storage 6145 | -7/Storage | Reached level 15 6204 | -7/Storage | Destroyed 9 combat bots 6218 | -7/Storage | Upgraded with Power slot (x1) 6218 | -7/Storage | Upgraded with Propulsion slot (x1) 6233 | -7/Storage | Assisted by bots powering up and referring to "LRC-V3" 6346 | -7/Storage | Discovered exit to Factory (range 13) 6381 | -7/Storage | First assault squad dispatched 6427 | -7/Storage | Entered Factory 6429 | -6/Factory | Reached level 16 6429 | -6/Factory | Upgraded with Propulsion slot (x1) 6442 | -6/Factory | Destroyed 8 combat bots 6455 | -6/Factory | Discovered new exit (range 16) 6479 | -6/Factory | Identified exit to Lower Caves 6592 | -6/Factory | Identified exit to Garrison 6613 | -6/Factory | Reached level 17 6945 | -6/Factory | Destroyed 7 combat bots 6979 | -6/Factory | Identified exit to Garrison 6979 | -6/Factory | Entered Garrison 6981 | -6/Garrison | Reached level 18 7006 | -6/Garrison | Triggered checkpoint 7069 | -6/Garrison | Discovered new exit (range 15) 7077 | -6/Garrison | Identified exit to Factory 7080 | -6/Garrison | Installed Relay Interface Framework 7104 | -6/Garrison | Triggered checkpoint 7142 | -6/Garrison | Garrison Relay disabled 7414 | -6/Garrison | Triggered checkpoint 7458 | -6/Garrison | Reached level 19 7473 | -6/Garrison | Upgraded with Utility slot (x1) 7479 | -6/Garrison | Destroyed 7 combat bots 7482 | -6/Garrison | Triggered checkpoint 7530 | -6/Garrison | Discovered exit to Factory (range 15) 7568 | -6/Garrison | Triggered checkpoint 7616 | -6/Garrison | Discovered exit to Factory (range 13) 7634 | -6/Garrison | Triggered checkpoint 7670 | -6/Garrison | Triggered checkpoint 7744 | -6/Garrison | Entered Factory 7746 | -5/Factory | Reached level 20 7915 | -5/Factory | Identified exit to Upper Caves 7920 | -5/Factory | Sucked down chute 7920 | -5/Factory | Entered Waste 7930 | -5/Waste | 1 allies followed down the chute 7935 | -5/Waste | EMP discharged 7935 | -5/Waste | System corruption reached 10% 7935 | -5/Waste | Spotted C-40 Crusher 7947 | -5/Waste | Spotted C-40 Crusher 7959 | -5/Waste | Crushed by Compactor (1 part destroyed, 2 dropped) 7959 | -5/Waste | Spotted C-40 Crusher 7962 | -5/Waste | Crushed by Compactor (1 part destroyed, 2 dropped) 7970 | -5/Waste | Spotted C-40 Crusher 7978 | -5/Waste | Crushed by Compactor (1 part destroyed, 2 dropped) 7993 | -5/Waste | Discovered new exit (range 10) 7998 | -5/Waste | Identified exit to Factory 7999 | -5/Waste | Entered Factory 8009 | -5/Factory | Lost 3 parts (1n2w) 8442 | -5/Factory | Central database locked down 8475 | -5/Factory | Discovered new exit (range 15) 8485 | -5/Factory | Identified exit to Factory 8506 | -5/Factory | Discovered exit to Upper Caves (range 16) 8555 | -5/Factory | Reached level 21 8571 | -5/Factory | Upgraded with Utility slot (x1) 8829 | -5/Factory | Identified exit to Garrison 8829 | -5/Factory | Entered Garrison 8829 | -5/Garrison | Accompanied by 1 ally 8831 | -5/Garrison | Expanded RIF knowledge: Patrol Navigation 8840 | -5/Garrison | Triggered checkpoint 8845 | -5/Garrison | Garrison Relay disabled 8953 | -5/Garrison | Triggered checkpoint 8976 | -5/Garrison | Spotted B-75 Beast 8983 | -5/Garrison | Core integrity fell below 50% 9003 | -5/Garrison | Triggered checkpoint 9049 | -5/Garrison | Destroyed B-75 Beast 9156 | -5/Garrison | Phase Generator disabled 9238 | -5/Garrison | Discovered new exit (range 16) 9242 | -5/Garrison | Identified exit to Factory 9257 | -5/Garrison | Triggered checkpoint 9263 | -5/Garrison | Garrison Relay disabled 9265 | -5/Garrison | Reached level 22 9306 | -5/Garrison | Triggered checkpoint 9322 | -5/Garrison | Triggered checkpoint 9358 | -5/Garrison | Discovered exit to Factory (range 13) 9371 | -5/Garrison | Garrison Relay disabled 9385 | -5/Garrison | Triggered checkpoint 9444 | -5/Garrison | Discovered exit to Factory (range 9) 9504 | -5/Garrison | Triggered checkpoint 9536 | -5/Garrison | Entered Factory 9536 | -5/Factory | Accompanied by 3 allies 9762 | -5/Factory | Repaired Hardlight Generator 9844 | -5/Factory | Repaired Gui. EMP Blaster 10136 | -5/Factory | First assault squad dispatched 10253 | -5/Factory | Discovered exit to Factory (range 15) 10351 | -5/Factory | P-70 Sage assimilated allied Administrator 6a 10406 | -5/Factory | Discovered exit to Factory (range 6) 10415 | -5/Factory | Entered another Factory area 10417 | -4/Factory | Reached level 23 10430 | -4/Factory | Reached level 24 10446 | -4/Factory | Upgraded with Propulsion slot (x1) 10494 | -4/Factory | Identified exit to Garrison 10519 | -4/Factory | Entered Garrison 10550 | -4/Garrison | Triggered checkpoint 10576 | -4/Garrison | Garrison Relay disabled 10649 | -4/Garrison | Triggered checkpoint 10662 | -4/Garrison | Core integrity fell below 50% 10696 | -4/Garrison | Spotted B-86 Titan 10712 | -4/Garrison | Triggered checkpoint 10719 | -4/Garrison | Core integrity fell below 20% 10732 | -4/Garrison | Destroyed by B-86 Titan with Hardcell Cannon Last Messages --------------- 10679_ Stasis field depleted. 10683_ G-67 Veteran heat damages Field Laser. 10683_ G-67 Veteran destroyed. 10687_ Overheating: Nuclear Pulse Array damaged (-43). 10692_ Destroyed Adv. Heat Sink. 10693_ G-67 Veteran system terminally corrupted. 10693_ Lgt. Antimatter Reactor fried. 10708_ Triggered Stasis Trap. 10708_ A bubble of rippling energy engulfs the area. 10708_ Field strength at 95. 10711_ S-27 Virus destroyed. 10711_ Chain reaction triggered in Corrupted Lgt. Nuclear Core. 10711_ S-27 Virus destroyed. 10722_ B-86 Titan misfires. 10723_ S-27 Virus destroyed. 10723_ Chain reaction triggered in Corrupted Lgt. Nuclear Core. 10723_ S-27 Virus destroyed. 10723_ Stasis field depleted. 10730_ Used Protomatter to restore core integrity (+36, depleted) 10732_ Field Propulsion Drive destroyed. Map ----- +----------------------------------------------------+ | ????????????????????????# #"#????????????????????? | | ????????????????????????# ###????????????????????? | | ????????????????????????# #??????????????????????? | | ????????????????????????# #??????????????????????? | | ????????????????????????# #??????????????????????? | | ??????????????????????###*#??????????????????????? | | ????#####?????????????#=[[#??????????????????????? | | ????# #?????????????#=%=#??????????????????????? | | ????# ###########???#%!!#??????????????????????? | | ????# #???### #??????????????????????? | | ????# #?????# #??????????????????????? | | ????############ ####### #??????????????????????? | | ???????????????# / #??????????????????????? | | ???????????????# ^#########??????????????????????? | | ???????????????# #??# #?????????????????????????? | | ???????????????# #??# #?????????????????????????? | | ???????????????# #??# #?????????????????????????? | | ???????????????# #### ######????????????????????? | | ???????????????# # #????????????????????? | | ???????????????# #### #### #????????????????????? | | ???????????????# #??# #??# #??????#?????????????? | | ???????????????# #??# #??# #????! #?????????????? | | ???????????????# #### #### ### %=######????????? | | ???????????????# ##;# # # [% [==% ???????? | | ???????????????# = = % [ *= ???????? | | ???????????????# % =@s s=%[ ???????? | | ???????????????######; % = [## [# #????????? | | ????????????????????# #### ??#?????????????? | | ????????????????????## ??? ?????????????? | | ??????????????????????#??? BB ??????????? | | ?????????????????????????? BB ?????????? | | ??????????????????????????? ?????????? | | ??????????????????????????? ## ## ?????????? | | ??????????????????????????? #? #?? ??????????? | | ??????????????????????????? ?? ????????????? | | ???????????????????????????? ??? ???????????? | | ???????????????????????????? ??? ???????????? | | ???????????????????????????? ##???"##????????????? | | ???????????????????????????? #???????????????????? | | ?????????????????????????????#???????????????????? | | ?????????????????????????????????????????????????? | | ?????????????????????????????????????????????????? | | ?????????????????????????????????????????????????? | | ?????????????????????????????????????????????????? | | ?????????????????????????????????????????????????? | | ?????????????????????????????????????????????????? | | ?????????????????????????????????????????????????? | | ?????????????????????????????????????????????????? | | ?????????????????????????????????????????????????? | | ?????????????????????????????????????????????????? | +----------------------------------------------------+ Best States ------------- Heat Dissipation 67 Coolant Potential 80 Energy Generation 41 Energy Capacity 700 Matter Stores 300 Matter Capacity 300 Sight Range 17 Robot Scan Range 38 Terrain Scan Range 16 Terrain Scan Density 510 Resistance: KI 15 Resistance: TH 15 Resistance: EX 10 Evasion (%) 63 Target Analysis 8 Particle Charging 15 Offensive Hacking 25 Defensive Hacking 15 Relay Coupler Types 2 Relay Coupler Value 102 Item Schematics ----------------- Katana | -9/Materials | Scanalyzed Graphene Brace | -7/Factory | Scanalyzed Greatsword | -7/Storage | Hacked Imp. System Restoration Module | -5/Factory | Scanalyzed Hvy. Flail | -5/Factory | Scanalyzed Prc. Shock Rifle | -5/Factory | Hacked Adv. Cryofiber Web | -5/Factory | Hacked Lrn. Proton Cannon | -5/Factory | Hacked Fusion Bomb Launcher | -5/Factory | Hacked Robot Schematics ------------------ S-27 Virus | -7/Factory | Hacked Fabricated ------------ Cmb. Airjet | x2 | -7/Factory | Preloaded Alien Tech Used ----------------- None Achievements -------------- None Challenges ------------ None RPGLIKE | -11 -10 -10 -9 -9 -8 -7 -7 -6 -6 -5 -5 -5 -5 -5 -4 -4 --------- Run | Scr Mat Min Mat Min Mat Fac Sto Fac Gar Fac Was Fac Gar Fac Fac Gar Levels Raised 23 | . 1 1 3 1 4 3 1 2 2 1 . 1 1 . 2 . XP Earned 38650 | 3000 2475 1150 4277 1200 6480 4141 2454 3168 2035 1887 139 837 1904 656 1838 1009 XP Spent 37170 | 3000 1450 1550 4465 . 7445 4275 1720 2990 2700 . . 3100 1450 300 2725 . Upgrades 86 | 10 12 2 18 . 16 7 4 4 2 . . 2 4 1 4 . Power Slot 1 | . . . . . . . 1 . . . . . . . . . Propulsion Slot 4 | 1 . . . . . . 1 1 . . . . . . 1 . Utility Slot 6 | 1 . 1 . . 2 . . . 1 . . 1 . . . . Weapon Slot 3 | 1 . . . . 1 1 . . . . . . . . . . Core Integrity 10 | . 4 . 2 . 3 . . 1 . . . . . . . . Heat Dissipation 7 | 1 3 . . . 1 1 1 . . . . . . . . . Energy Generation 2 | 2 . . . . . . . . . . . . . . . . Energy Storage 6 | . . . . . 1 1 1 1 . . . . . . 2 . Mass Support 3 | 1 . . . . . 1 . . . . . 1 . . . . Inventory Capacity 6 | . 2 1 1 . 1 . . 1 . . . . . . . . Sight Range 1 | 1 . . . . . . . . . . . . . . . . Sensor Range 11 | . . . 10 . . . . . . . . . . 1 . . Terrain Scan Density 5 | . 3 . . . 2 . . . . . . . . . . . Ranged Accuracy 4 | . . . 2 . 1 . . . . . . . . . 1 . Hack Attack % 5 | 1 . . . . 1 2 . . 1 . . . . . . . Hack Defense % 3 | 1 . . 1 . . 1 . . . . . . . . . . KI Resistance % 3 | . . . 1 . 1 . . . . . . . 1 . . . TH Resistance % 3 | . . . 1 . 1 . . . . . . . 1 . . . EX Resistance % 2 | . . . . . . . . . . . . . 2 . . . TH Damage % 1 | . . . . . 1 . . . . . . . . . . . Protomatter Created 2834 | . 92 47 269 51 429 284 347 170 525 57 . 81 389 30 . 63 Integrity Restored 5968 | . 183 243 679 5 696 362 755 474 1089 105 . 351 900 90 . 36 Core 5087 | . 183 243 509 5 530 334 533 474 794 105 . 351 900 90 . 36 Parts 881 | . . . 170 . 166 28 222 . 295 . . . . . . . Protomatter Decayed 942 | . 31 . 172 43 252 23 151 . 86 . . . 126 58 . . Game ------ Seed GyrokineticHeartLeg Manual? 0 Play Time 02:53:56 Cumulative 219.7 hours Start 2022.05.12 @ 02:52:10 End 2022.05.18 @ 04:49:49 Sessions 3 Manual Loads 0 Difficulty Rogue Special Mode Winter2019/RPGLIKE Game No. 156 Rogue 133 Adventurer 6 Explorer 17 Win Type - Total 15 Types 9/0/2/1/0/1/1/1/0 Lore% 92 Gallery% 90 Achievement% 68 Wizard Run 0 Options --------- ASCII 0 Keyboard 0 Movement Numpad Keybinds 0 Fullscreen 1 Font 12/Fuzzy Map View 83x54 Tactical HUD 1 Map Filters NONE Filters NONE Steam 1 RUN: 3a98950c-46bf-4cc2-965b-fc14b6ff05f3